bitfinex/quotes_BTCUSD_20220731
["timestamp","ask_amount","ask_price","bid_price","bid_amount"]
[1659305806470,6.164e-05,23459.0,23456.0,0.05080449]
[1659305806687,1.24054531,23461.0,23458.0,0.33779164]
[1659305806688,0.08,23461.0,23458.0,0.33779164]
[1659305806888,0.08,23461.0,23460.0,0.14221052]
[1659305807131,0.6089,23467.0,23460.0,0.39097664]
[1659305807361,0.40725733,23466.0,23461.0,0.05895554]
[1659305807573,6.163e-05,23462.0,23461.0,0.05895554]
[1659305807783,0.07753479,23462.0,23461.0,0.05895554]
[1659305808005,0.65465312,23462.0,23455.0,0.0011]
[1659305808232,0.05,23460.0,23456.0,0.05470638]
[1659305808449,0.40725733,23459.0,23456.0,0.05470638]
[1659305808685,0.50725733,23459.0,23456.0,0.05470638]
[1659305808887,0.8779,23464.0,23456.0,0.45999707]
[1659305808888,0.05,23463.0,23456.0,0.45999707]
[1659305809128,0.1,23462.0,23456.0,0.45999707]
[1659305809369,0.10007565,23462.0,23456.0,0.45999707]
[1659305809581,0.10007565,23462.0,23457.0,0.106525]
[1659305809810,0.10007565,23462.0,23457.0,0.14761118]
[1659305810212,0.1,23462.0,23457.0,0.14761118]
[1659305810444,0.05,23462.0,23457.0,0.14761118]
[1659305810674,0.45725733,23462.0,23457.0,0.04108618]
[1659305810867,0.45725733,23462.0,23457.0,0.04776395]
[1659305810868,0.45725733,23461.0,23457.0,0.04776395]
[1659305811087,0.03467316,23460.0,23457.0,0.04776395]
[1659305812373,0.44193049,23460.0,23457.0,0.04776395]
[1659305813040,0.40725733,23460.0,23457.0,0.04776395]
[1659305813260,0.40725733,23460.0,23457.0,0.15429995]
[1659305813720,0.05,23458.0,23457.0,0.04776395]
[1659305813962,0.05,23458.0,23455.0,0.0011]
[1659305813963,0.05,23456.0,23455.0,0.0011]
[1659305814210,0.67711833,23456.0,23455.0,0.04387189]
[1659305814416,0.76179149,23456.0,23455.0,0.04387189]
[1659305815105,0.67711833,23456.0,23455.0,0.04387189]
[1659305815318,0.72711833,23456.0,23455.0,0.04387189]
[1659305816948,0.67711833,23456.0,23455.0,0.04387189]
[1659305817159,0.62711833,23456.0,23455.0,0.04387189]
[1659305817603,0.67711833,23456.0,23455.0,0.04387189]
[1659305818711,0.71179149,23456.0,23455.0,0.04387189]
[1659305820519,0.71179149,23456.0,23455.0,0.0011]
[1659305820980,0.106579,23454.0,23452.0,0.106567]
[1659305821196,0.45725733,23453.0,23450.0,0.107683]
[1659305821425,0.57711833,23452.0,23450.0,0.107683]
[1659305821656,0.45725733,23451.0,23450.0,0.107683]
[1659305821879,0.97711833,23451.0,23450.0,0.0011]
[1659305822631,0.97711833,23451.0,23448.0,0.002]
[1659305822632,1.21371068,23449.0,23448.0,0.002]
[1659305823068,1.21371068,23449.0,23446.0,0.002]
[1659305823069,0.15,23447.0,23446.0,0.002]
[1659305823072,0.05,23446.0,23440.0,0.05493389]
[1659305823311,0.05,23446.0,23437.0,0.0532]
[1659305823312,0.05,23441.0,23437.0,0.0532]
[1659305823709,0.1,23444.0,23437.0,0.0001]
[1659305823710,0.55725733,23438.0,23437.0,0.0001]
[1659305823928,1.20725733,23438.0,23437.0,0.0001]
[1659305824154,1.48378433,23438.0,23437.0,0.0001]
[1659305824396,0.05,23434.0,23433.0,0.002]
[1659305824683,1.15725733,23434.0,23433.0,0.002]
[1659305824905,0.77711833,23434.0,23433.0,0.002]
[1659305825349,0.81179149,23434.0,23433.0,0.002]
[1659305825581,0.55,23433.0,23432.0,0.0051]
[1659305825805,0.90725733,23433.0,23432.0,0.0001]
[1659305826058,0.90725733,23433.0,23432.0,0.17784366]
[1659305826059,0.57711833,23433.0,23432.0,0.17784366]
[1659305826298,0.03467316,23434.0,23432.0,0.17784366]
[1659305826299,0.0012776,23434.0,23432.0,0.44042054]
[1659305826591,0.2453839,23446.0,23434.0,0.5]
[1659305826838,0.57711833,23445.0,23439.0,0.05898306]
[1659305827071,0.40725733,23444.0,23439.0,0.05898306]
[1659305827287,0.169861,23443.0,23439.0,0.05898306]
[1659305827520,0.40725733,23442.0,23438.0,0.2499334]
[1659305827749,0.19615239,23453.0,23438.0,0.2499334]
[1659305827750,0.51371068,23449.0,23441.0,0.43183408]
[1659305827991,0.92096801,23449.0,23446.0,0.2499334]
[1659305828209,0.92096801,23449.0,23444.0,0.29499443]
[1659305828475,0.91596801,23449.0,23444.0,0.29499443]
[1659305828949,0.169861,23448.0,23444.0,0.29499443]
[1659305829166,0.91596801,23449.0,23447.0,0.04928115]
[1659305829167,0.91675306,23449.0,23447.0,0.04928115]
[1659305829390,0.169861,23448.0,23447.0,0.04928115]
[1659305829617,0.169861,23448.0,23445.0,0.05635206]
[1659305829618,0.57711833,23448.0,23445.0,0.05635206]
[1659305829852,0.40725733,23447.0,23445.0,0.05635206]
[1659305830093,0.40725733,23447.0,23442.0,0.08]
[1659305830094,0.219861,23446.0,23442.0,0.08]
[1659305830342,0.55,23443.0,23442.0,0.08]
[1659305830561,0.50725733,23443.0,23442.0,0.07968516]
[1659305830777,0.57711833,23443.0,23442.0,0.08124148]
[1659305831009,0.00152878,23447.0,23444.0,0.05419808]
[1659305831253,0.57711833,23446.0,23444.0,0.05419808]
[1659305831482,0.57711833,23446.0,23441.0,0.05957662]
[1659305831483,0.45725733,23445.0,23441.0,0.05957662]
[1659305831702,0.05,23446.0,23442.0,0.2499334]
[1659305831703,0.57711833,23444.0,23442.0,0.2499334]
[1659305831932,0.00152878,23447.0,23443.0,0.05347396]
[1659305832145,0.61179149,23446.0,23443.0,0.05347396]
[1659305832452,0.44193049,23446.0,23443.0,0.05347396]
[1659305832658,0.169861,23445.0,23443.0,0.30340736]
[1659305832887,0.44193049,23446.0,23444.0,0.04104931]
[1659305833100,0.169861,23445.0,23444.0,0.04104931]
[1659305833549,0.219861,23445.0,23444.0,0.04104931]
[1659305833766,0.1,23445.0,23444.0,0.04104931]
[1659305834001,0.00152878,23447.0,23444.0,0.04104931]
[1659305834256,0.00152878,23447.0,23445.0,0.71065154]
[1659305834504,0.00152878,23447.0,23446.0,0.79823397]
[1659305834947,0.00152878,23447.0,23446.0,1.11087745]
[1659305835188,0.00149056,23447.0,23446.0,1.66087745]
[1659305835399,0.00149056,23447.0,23446.0,1.66095524]
[1659305835617,0.00149056,23447.0,23446.0,1.15595524]
[1659305835841,0.001,23456.0,23447.0,0.00076]
[1659305836083,0.001,23456.0,23451.0,0.3095868]
[1659305836376,0.001,23456.0,23455.0,0.33272504]
[1659305836613,0.001,23456.0,23455.0,0.71052009]
[1659305836827,0.001,23456.0,23455.0,0.303185]
[1659305837069,0.001,23456.0,23453.0,0.21307]
[1659305837282,0.001,23456.0,23454.0,0.303185]
[1659305837512,0.001,23456.0,23455.0,0.0828694]
[1659305837727,0.001,23456.0,23455.0,0.3860544]
[1659305838219,0.001,23456.0,23455.0,0.0828694]
[1659305838437,0.001,23456.0,23455.0,0.3860544]
[1659305838660,0.001,23456.0,23455.0,0.0828694]
[1659305839080,0.001,23456.0,23455.0,1.04324513]
[1659305839081,0.00177643,23456.0,23455.0,1.04324513]
[1659305839566,0.00177643,23456.0,23455.0,0.79331173]
[1659305840566,0.00177643,23456.0,23455.0,0.49012673]
[1659305840915,0.00177643,23456.0,23455.0,0.79331173]
[1659305841242,0.00177643,23456.0,23455.0,0.84476488]
[1659305841455,0.61999845,23459.0,23455.0,0.84476488]
[1659305841685,0.61999845,23459.0,23455.0,0.54157988]
[1659305841887,0.61999845,23459.0,23456.0,0.46794655]
[1659305842134,0.61999845,23459.0,23456.0,0.16476155]
[1659305842351,0.65467161,23459.0,23456.0,0.16476155]
[1659305842549,0.169861,23458.0,23456.0,0.05822655]
[1659305842805,0.219861,23458.0,23456.0,0.05822655]
[1659305843373,0.169861,23458.0,23456.0,0.05822655]
[1659305843612,0.05,23458.0,23456.0,0.05822655]
[1659305843825,0.05,23457.0,23456.0,0.05822655]
[1659305844290,0.60866083,23459.0,23456.0,0.05822655]
[1659305844513,0.60866083,23459.0,23456.0,0.05322655]
[1659305844971,0.57398767,23459.0,23456.0,0.05322655]
[1659305845190,0.52398767,23459.0,23456.0,0.05322655]
[1659305845921,0.52398767,23459.0,23456.0,0.56701888]
[1659305846124,0.52471302,23459.0,23457.0,0.303185]
[1659305846343,0.52471302,23459.0,23458.0,0.38597664]
[1659305846561,0.52471302,23459.0,23458.0,0.43597664]
[1659305847015,0.52398767,23459.0,23458.0,0.43597664]
[1659305847981,0.52398767,23459.0,23458.0,0.38597664]
[1659305848211,0.52318775,23459.0,23458.0,0.38597664]
[1659305849325,0.52394277,23459.0,23457.0,0.34632745]
[1659305849561,0.52394277,23459.0,23458.0,0.303392]
[1659305849828,0.52394277,23459.0,23457.0,0.34653445]
[1659305850047,0.57394277,23459.0,23458.0,0.303392]
[1659305850267,0.52318775,23459.0,23458.0,0.303392]
[1659305850494,0.52318775,23459.0,23457.0,0.34653445]
[1659305850721,0.52318775,23459.0,23458.0,0.38618364]
[1659305851584,0.52318775,23459.0,23458.0,0.79344097]
[1659305851826,0.52318775,23459.0,23458.0,1.09344097]
[1659305852046,0.52318775,23459.0,23458.0,0.79344097]
[1659305852751,0.52318775,23459.0,23458.0,1.09344097]
[1659305852995,0.52318775,23459.0,23458.0,0.71064933]
[1659305853659,0.55786091,23459.0,23458.0,0.71064933]
[1659305853878,0.52318775,23459.0,23458.0,0.71064933]
[1659305856003,0.57318775,23459.0,23458.0,0.71064933]
[1659305856214,0.52318775,23459.0,23458.0,0.71064933]
[1659305857108,0.52318775,23459.0,23458.0,0.40725733]
[1659305857322,0.52318775,23459.0,23458.0,0.71064933]
[1659305859297,0.55786091,23459.0,23458.0,0.71064933]
[1659305859566,0.52318775,23459.0,23458.0,0.71064933]
[1659305861894,0.46847989,23459.0,23458.0,0.71064933]
[1659305867783,0.46847989,23459.0,23457.0,0.04314245]
[1659305867784,0.51847989,23459.0,23457.0,0.04314245]
[1659305867974,0.174829,23458.0,23457.0,0.04314245]
[1659305868206,0.51847989,23459.0,23457.0,0.04314245]
[1659305868494,0.174829,23458.0,23457.0,0.04314245]
[1659305868715,0.51847989,23459.0,23457.0,0.04314245]
[1659305869585,0.46847989,23459.0,23457.0,0.03514245]
[1659305870037,0.46847989,23459.0,23457.0,0.14167645]
[1659305870680,0.50315305,23459.0,23457.0,0.14167645]
[1659305870897,0.46847989,23459.0,23457.0,0.14167645]
[1659305871398,0.45918557,23459.0,23457.0,0.14167645]
[1659305873188,0.49385873,23459.0,23457.0,0.14167645]
[1659305873659,0.45918557,23459.0,23457.0,0.14167645]
[1659305874359,0.45918557,23459.0,23457.0,0.54893378]
[1659305874588,0.45918557,23459.0,23458.0,1.94337437]
[1659305874813,0.45918557,23459.0,23458.0,2.34899358]
[1659305875073,6.149e-05,23463.0,23460.0,0.31717162]
[1659305875313,6.149e-05,23463.0,23462.0,0.38673414]
[1659305875542,6.149e-05,23463.0,23462.0,1.39738347]
[1659305875779,0.001,23468.0,23466.0,0.2499334]
[1659305876020,0.001,23468.0,23467.0,1.38731924]
[1659305876252,0.001,23468.0,23467.0,1.68731924]
[1659305876479,0.001,23468.0,23467.0,1.74612855]
[1659305876715,0.00106263,23468.0,23467.0,2.20637203]
[1659305876961,0.001,23471.0,23470.0,0.53942167]
[1659305877174,0.001,23471.0,23470.0,2.6000044]
[1659305877399,0.001,23471.0,23470.0,2.6425344]
[1659305877832,0.001,23471.0,23470.0,2.3425344]
[1659305878523,0.001,23471.0,23470.0,2.7425344]
[1659305878853,0.002,23479.0,23472.0,0.49357643]
[1659305879002,0.002,23479.0,23474.0,0.30735603]
[1659305879228,0.002,23479.0,23475.0,0.75619105]
[1659305879458,0.002,23479.0,23477.0,0.44222887]
[1659305879687,0.002,23479.0,23477.0,1.1528782]
[1659305880130,0.00107565,23478.0,23477.0,1.1528782]
[1659305880378,0.03574881,23478.0,23477.0,0.36282923]
[1659305880608,0.03574881,23478.0,23477.0,0.05943723]
[1659305880844,0.49031298,23478.0,23477.0,0.05943723]
[1659305881104,0.54023733,23478.0,23477.0,0.05943723]
[1659305881362,0.74973949,23478.0,23477.0,0.05943723]
[1659305882509,0.63308633,23478.0,23477.0,0.05943723]
[1659305882744,0.17655233,23478.0,23477.0,0.05943723]
[1659305882964,0.00172333,23478.0,23477.0,0.05943723]
[1659305883630,0.03639649,23478.0,23477.0,0.05943723]
[1659305883881,0.00172333,23478.0,23477.0,0.05943723]
[1659305884095,0.05172333,23478.0,23477.0,0.05943723]
[1659305884328,0.00172333,23478.0,23477.0,0.05943723]
[1659305884552,0.17655233,23478.0,23477.0,0.05943723]
[1659305884787,0.00172333,23478.0,23477.0,0.05943723]
[1659305885229,0.17655233,23478.0,23477.0,0.05943723]
[1659305885458,0.21935233,23478.0,23477.0,0.05943723]
[1659305885676,0.25133233,23478.0,23477.0,0.05943723]
[1659305885894,0.28600549,23478.0,23477.0,0.05943723]
[1659305886138,0.75046282,23478.0,23477.0,0.05943723]
[1659305887564,1.05046282,23478.0,23477.0,0.05943723]
[1659305887790,0.75046282,23478.0,23477.0,0.05943723]
[1659305888226,1.05046282,23478.0,23477.0,0.05943723]
[1659305889382,0.75046282,23478.0,23477.0,0.05943723]
[1659305890553,1.05046282,23478.0,23477.0,0.05943723]
[1659305891457,0.75046282,23478.0,23477.0,0.05943723]
[1659305891678,0.68380966,23478.0,23477.0,0.05943723]
[1659305892369,0.71578966,23478.0,23477.0,0.05943723]
[1659305892792,0.71651299,23478.0,23477.0,0.05943723]
[1659305893450,0.68453299,23478.0,23477.0,0.05943723]
[1659305894779,0.98453299,23478.0,23477.0,0.05943723]
[1659305895229,0.71920615,23478.0,23477.0,0.05943723]
[1659305895669,0.71420615,23478.0,23477.0,0.05943723]
[1659305896405,0.05,23473.0,23467.0,0.3]
[1659305896640,0.05,23473.0,23462.0,0.10715018]
[1659305896641,0.1,23470.0,23462.0,0.6310334]
[1659305896859,0.40725733,23469.0,23462.0,0.4395967]
[1659305897084,0.4157,23468.0,23462.0,0.0584967]
[1659305897312,0.58208633,23467.0,23462.0,0.0584967]
[1659305897554,0.40725733,23466.0,23462.0,0.0584967]
[1659305897793,0.174829,23465.0,23462.0,0.0584967]
[1659305898047,0.05,23467.0,23464.0,0.2499334]
[1659305898280,0.1,23470.0,23466.0,0.30235271]
[1659305898495,0.20950216,23469.0,23466.0,0.40884771]
[1659305898715,0.00074343,23467.0,23466.0,0.40884771]
[1659305898948,0.00074343,23467.0,23466.0,0.15891431]
[1659305899169,0.00074343,23467.0,23466.0,0.40884771]
[1659305899870,0.00074343,23469.0,23466.0,0.40884771]
[1659305900096,0.00074343,23469.0,23468.0,0.2499334]
[1659305900391,0.22557243,23469.0,23468.0,0.30983759]
[1659305900862,0.05074343,23469.0,23468.0,0.30968973]
[1659305901088,0.22557243,23469.0,23468.0,0.30968973]
[1659305901575,0.17557243,23469.0,23468.0,0.30968973]
[1659305901786,0.00074343,23469.0,23468.0,0.61308173]
[1659305902070,0.00074343,23469.0,23468.0,1.03298254]
[1659305902286,0.00074343,23469.0,23468.0,1.33298254]
[1659305902726,0.00074343,23469.0,23468.0,0.67572521]
[1659305902946,0.00074343,23469.0,23468.0,0.05975633]
[1659305903856,0.00074343,23469.0,23468.0,0.30968973]
[1659305904317,0.00074343,23469.0,23468.0,1.02033906]
[1659305904778,0.00074343,23469.0,23468.0,1.32033906]
[1659305905000,0.00074343,23469.0,23468.0,1.02033906]
[1659305905700,0.17405511,23475.0,23469.0,0.106472]
[1659305905898,0.40725733,23474.0,23469.0,0.14827085]
[1659305906139,0.40725733,23474.0,23470.0,0.2499334]
[1659305906366,0.08467316,23473.0,23470.0,0.2499334]
[1659305906589,0.40725733,23474.0,23470.0,0.2499334]
[1659305907081,0.40725733,23474.0,23471.0,0.16267203]
[1659305907302,0.174829,23473.0,23471.0,0.16267203]
[1659305907523,0.1,23473.0,23471.0,0.16267203]
[1659305907745,0.05,23473.0,23471.0,0.16267203]
[1659305908001,0.44193049,23474.0,23471.0,0.16267203]
[1659305908002,0.45725733,23474.0,23471.0,0.16267203]
[1659305908234,0.45799043,23474.0,23471.0,0.16267203]
[1659305908461,0.45799043,23474.0,23472.0,0.2499334]
[1659305908689,0.03467316,23473.0,23472.0,0.05709543]
[1659305908911,0.20950216,23473.0,23472.0,0.05709543]
[1659305911135,0.174829,23473.0,23472.0,0.05709543]
[1659305911855,0.40799043,23474.0,23472.0,0.05709543]
[1659305912082,0.174829,23473.0,23472.0,0.05709543]
[1659305912738,0.1755621,23473.0,23472.0,0.05709543]
[1659305913179,0.2255621,23473.0,23472.0,0.05709543]
[1659305913406,1.51024379,23479.0,23472.0,0.05709543]
[1659305913407,0.52202719,23483.0,23477.0,0.01720836]
[1659305913654,0.001,23485.0,23482.0,0.08279164]
[1659305913872,0.001,23485.0,23484.0,0.33272504]
[1659305914099,0.001,23485.0,23484.0,0.44594494]
[1659305914343,0.001,23485.0,23484.0,0.85320227]
[1659305914587,0.001,23485.0,23484.0,0.85447506]
[1659305914842,0.001,23485.0,23484.0,0.14270594]
[1659305915077,0.001,23485.0,23484.0,0.0599143]
[1659305916915,0.001,23485.0,23484.0,0.3631533]
[1659305917522,0.001,23485.0,23484.0,0.77041063]
[1659305917525,0.001,23485.0,23484.0,1.07034403]
[1659305917949,0.001,23485.0,23484.0,0.77041063]
[1659305918301,0.001,23485.0,23484.0,1.02034403]
[1659305918511,0.001,23485.0,23484.0,1.32040766]
[1659305918736,0.001,23485.0,23484.0,0.77047426]
[1659305919863,0.001,23485.0,23484.0,1.07047426]
[1659305920133,0.001,23485.0,23484.0,0.77047426]
[1659305921620,0.0938,23485.0,23484.0,0.3631533]
[1659305921841,0.051,23485.0,23484.0,0.0599143]
[1659305922070,0.001,23485.0,23484.0,0.0599143]
[1659305922731,0.001,23485.0,23484.0,0.05997793]
[1659305923404,0.0438,23485.0,23484.0,0.0599143]
[1659305923836,0.0938,23485.0,23484.0,0.0599143]
[1659305924038,0.1438,23485.0,23484.0,0.0599143]
[1659305924246,0.101,23485.0,23484.0,0.0599143]
[1659305924662,0.50825733,23485.0,23484.0,0.0599143]
[1659305925948,0.95582733,23485.0,23484.0,0.0599143]
[1659305926173,0.95582733,23485.0,23483.0,0.106424]
[1659305926174,0.05,23484.0,23481.0,0.10642]
[1659305926471,0.0651,23482.0,23481.0,0.15487815]
[1659305926710,0.47235733,23482.0,23481.0,0.15487815]
[1659305928944,0.40725733,23482.0,23481.0,0.15487815]
[1659305929142,0.40725733,23482.0,23481.0,0.15782089]
[1659305930018,0.44193049,23482.0,23481.0,0.15782089]
[1659305930283,0.44193049,23482.0,23481.0,0.15487815]
[1659305931186,0.44193049,23482.0,23481.0,0.04845815]
[1659305931407,0.44193049,23482.0,23481.0,0.15487815]
[1659305935151,0.74193049,23482.0,23481.0,0.04845815]
[1659305935618,0.44193049,23482.0,23481.0,0.04845815]
[1659305936807,0.00069883,23483.0,23481.0,0.04845815]
[1659305937032,0.00069883,23483.0,23481.0,0.29839155]
[1659305937282,0.00069883,23483.0,23482.0,0.08279164]
[1659305938184,0.40795616,23483.0,23481.0,0.04845815]
[1659305938411,0.40725733,23482.0,23481.0,0.04845815]
[1659305938631,0.45725733,23482.0,23481.0,0.04845815]
[1659305940269,0.49193049,23482.0,23481.0,0.04845815]
[1659305940515,1.07220021,23482.0,23481.0,0.04845815]
[1659305943911,1.07220021,23482.0,23481.0,0.00852815]
[1659305944815,1.37220021,23482.0,23481.0,0.00852815]
[1659305945256,1.37220021,23482.0,23480.0,0.212907]
[1659305945257,0.05,23481.0,23480.0,0.212907]
[1659305945543,0.75725733,23481.0,23480.0,0.261728]
[1659305945773,0.75725733,23481.0,23480.0,0.155272]
[1659305946659,0.45725733,23481.0,23480.0,0.155272]
[1659305946875,0.75725733,23481.0,23480.0,0.155272]
[1659305948935,0.70725733,23481.0,23480.0,0.155272]
[1659305952785,0.40725733,23481.0,23480.0,0.155272]
[1659305953017,0.40725733,23481.0,23480.0,0.4052054]
[1659305954894,0.40725733,23481.0,23480.0,0.155272]
[1659305956468,0.44193049,23481.0,23480.0,0.155272]
[1659305956715,0.40725733,23481.0,23480.0,0.155272]
[1659305957381,0.70725733,23481.0,23480.0,0.155272]
[1659305957600,0.74193049,23481.0,23480.0,0.155272]
[1659305958804,0.74193049,23481.0,23478.0,0.212944]
[1659305959039,0.74193049,23481.0,23471.0,0.04709013]
[1659305959040,0.05,23477.0,23471.0,0.04709013]
[1659305959300,0.05,23477.0,23471.0,0.106484]
[1659305959301,0.40725733,23472.0,23471.0,0.106484]
[1659305959576,0.79193049,23472.0,23471.0,0.16205552]
[1659305959803,0.84193049,23472.0,23471.0,0.16205552]
[1659305960052,0.89193049,23472.0,23471.0,0.16205552]
[1659305960976,0.89268272,23472.0,23471.0,0.16205552]
[1659305965507,0.59268272,23472.0,23471.0,0.16205552]
[1659305967151,0.54268272,23472.0,23471.0,0.16150252]
[1659305967574,0.59268272,23472.0,23471.0,0.16150252]
[1659305967792,0.89268272,23472.0,23471.0,0.16150252]
[1659305967991,0.84268272,23472.0,23471.0,0.16150252]
[1659305968304,0.54268272,23472.0,23471.0,0.16150252]
[1659305969598,0.84268272,23472.0,23471.0,0.16150252]
[1659305971210,0.45800956,23472.0,23471.0,0.16150252]
[1659305971987,0.45800956,23472.0,23471.0,0.41143592]
[1659305972194,0.45800956,23472.0,23471.0,0.16150252]
[1659305972401,0.50800956,23472.0,23471.0,0.16150252]
[1659305973672,0.45800956,23472.0,23471.0,0.16150252]
[1659305974395,0.50800956,23472.0,23471.0,0.16150252]
[1659305974753,0.54268272,23472.0,23471.0,0.16150252]
[1659305975211,0.84268272,23472.0,23471.0,0.16150252]
[1659305976789,0.40800956,23472.0,23471.0,0.16156618]
[1659305976984,0.40800956,23472.0,23471.0,0.46480518]
[1659305977208,0.40800956,23472.0,23471.0,0.16156618]
[1659305977463,0.48548272,23472.0,23471.0,0.16150252]
[1659305977685,1.00693376,23472.0,23471.0,0.16150252]
[1659305978664,1.36413376,23472.0,23471.0,0.16150252]
[1659305979112,1.36413376,23472.0,23456.0,0.07454]
[1659305979113,0.05,23465.0,23456.0,0.07454]
[1659305979346,0.05,23470.0,23450.0,0.7171]
[1659305979347,0.05,23453.0,23450.0,0.7171]
[1659305979583,0.0654,23459.0,23450.0,0.7171]
[1659305979584,0.0654,23459.0,23450.0,0.0031]
[1659305979585,0.52265733,23451.0,23450.0,0.0031]
[1659305979817,1.27025733,23451.0,23450.0,0.0009]
[1659305980058,1.27025733,23451.0,23446.0,0.0011]
[1659305980059,0.1,23447.0,23446.0,0.0011]
[1659305980294,0.1,23447.0,23433.0,0.31030255]
[1659305980295,0.05,23445.0,23433.0,0.31030255]
[1659305980530,0.0655,23441.0,23433.0,0.31030255]
[1659305980767,0.45725733,23440.0,23436.0,0.106638]
[1659305981019,0.05,23442.0,23437.0,0.5]
[1659305981249,0.05,23447.0,23440.0,0.5]
[1659305981487,0.3,23450.0,23440.0,0.5]
[1659305981488,0.05,23450.0,23443.0,0.156592]
[1659305981726,0.05,23450.0,23444.0,0.3507517]
[1659305981727,0.40725733,23450.0,23444.0,0.3507517]
[1659305981975,0.40725733,23450.0,23445.0,0.16387723]
[1659305981976,0.45725733,23450.0,23445.0,0.16387723]
[1659305982482,0.45725733,23450.0,23445.0,0.17652071]
[1659305982706,0.45725733,23450.0,23446.0,0.01264348]
[1659305983370,0.45725733,23450.0,23447.0,0.00020433]
[1659305983591,0.40725733,23450.0,23447.0,0.00020433]
[1659305984275,0.40725733,23450.0,23446.0,0.01264348]
[1659305985012,0.40725733,23450.0,23446.0,0.06703223]
[1659305985464,0.40725733,23450.0,23446.0,0.05438875]
[1659305986439,0.45725733,23450.0,23446.0,0.05438875]
[1659305987726,0.45725733,23450.0,23447.0,0.00020433]
[1659305987960,0.45725733,23450.0,23446.0,0.04459308]
[1659305990334,0.00067641,23451.0,23447.0,0.90725733]
[1659305990535,0.00067641,23451.0,23450.0,0.87944358]
[1659305990758,0.00067641,23451.0,23450.0,1.58670091]
[1659305990991,6.41e-06,23452.0,23451.0,0.68279164]
[1659305991196,6.41e-06,23452.0,23451.0,2.29199875]
[1659305991446,6.41e-06,23452.0,23451.0,2.24199875]
[1659305991673,6.41e-06,23452.0,23451.0,1.39199875]
[1659305992130,6.41e-06,23452.0,23451.0,1.69199875]
[1659305992353,6.41e-06,23452.0,23451.0,1.39199875]
[1659305992592,6.41e-06,23452.0,23451.0,1.44199875]
[1659305992830,6.41e-06,23452.0,23451.0,1.74199875]
[1659305993268,6.41e-06,23452.0,23451.0,1.44199875]
[1659305993922,6.41e-06,23452.0,23451.0,1.39199875]
[1659305994351,6.41e-06,23452.0,23451.0,1.30920711]
[1659305994780,6.41e-06,23452.0,23451.0,1.35912348]
[1659305995655,6.41e-06,23452.0,23451.0,0.85006034]
[1659305999852,6.41e-06,23452.0,23451.0,1.55006034]
[1659306000067,6.41e-06,23452.0,23451.0,1.99766034]
[1659306000292,6.41e-06,23452.0,23451.0,2.14562382]
[1659306001206,6.41e-06,23452.0,23451.0,0.89802382]
[1659306001438,6.41e-06,23452.0,23451.0,0.47812301]
[1659306001749,6.41e-06,23452.0,23451.0,0.04832615]
[1659306002093,6.41e-06,23452.0,23451.0,0.44808012]
[1659306002309,6.41e-06,23452.0,23451.0,0.85533745]
[1659306003015,6.41e-06,23452.0,23451.0,3.15293745]
[1659306003243,6.41e-06,23452.0,23451.0,3.55090093]
[1659306003511,6.41e-06,23452.0,23451.0,2.55090093]
[1659306004194,6.41e-06,23452.0,23451.0,1.24065745]
[1659306004422,6.41e-06,23452.0,23451.0,0.89065745]
[1659306005321,6.41e-06,23452.0,23451.0,0.48340012]
[1659306007437,0.37700641,23459.0,23453.0,0.14663661]
[1659306007654,0.40725733,23458.0,23453.0,0.14663661]
[1659306007876,0.45725733,23458.0,23453.0,0.14663661]
[1659306008102,0.40725733,23457.0,23453.0,0.14663661]
[1659306008326,0.03487749,23456.0,23453.0,0.11663661]
[1659306009029,0.05,23455.0,23453.0,0.11663661]
[1659306009246,0.79213482,23456.0,23453.0,0.11663661]
[1659306009593,0.49213482,23456.0,23453.0,0.11663661]
[1659306010047,0.40725733,23456.0,23453.0,0.11663661]
[1659306010274,7.591e-05,23460.0,23453.0,0.11663661]
[1659306010503,0.40725733,23459.0,23453.0,0.11663661]
[1659306010955,0.3,23458.0,23453.0,0.11663661]
[1659306011215,0.40725733,23457.0,23453.0,0.11663661]
[1659306011452,0.03487749,23456.0,23453.0,0.11990345]
[1659306011683,0.44213482,23456.0,23453.0,0.11990345]
[1659306012800,0.40725733,23456.0,23453.0,0.11990345]
[1659306014198,0.45725733,23456.0,23453.0,0.11990345]
[1659306014434,0.40725733,23455.0,23453.0,0.11990345]
[1659306014661,0.50725733,23455.0,23453.0,0.11990345]
[1659306014880,0.40725733,23454.0,23453.0,0.11990345]
[1659306015129,0.45725733,23455.0,23453.0,0.11990345]
[1659306016290,0.00020433,23454.0,23453.0,0.11990345]
[1659306016525,0.03487749,23454.0,23453.0,0.11990345]
[1659306016750,0.44213482,23454.0,23453.0,0.11990345]
[1659306016979,0.44213482,23454.0,23453.0,0.18624442]
[1659306018412,0.40725733,23454.0,23453.0,0.18624442]
[1659306019363,0.44213482,23454.0,23453.0,0.18624442]
[1659306020037,0.40725733,23454.0,23453.0,0.18624442]
[1659306020765,0.032,23461.0,23453.0,0.18624442]
[1659306020766,1.37799613,23462.0,23453.0,0.64782839]
[1659306021028,0.40725733,23461.0,23454.0,0.13279164]
[1659306021259,0.80435733,23461.0,23454.0,0.13279164]
[1659306021499,0.40725733,23460.0,23454.0,0.13279164]
[1659306021729,0.40705565,23460.0,23455.0,0.16540833]
[1659306021945,0.40725733,23459.0,23455.0,0.16540833]
[1659306022413,0.40725733,23459.0,23455.0,0.2317493]
[1659306022636,0.03467316,23458.0,23455.0,0.2317493]
[1659306022895,0.40725733,23459.0,23455.0,0.2317493]
[1659306023792,0.03487749,23458.0,23455.0,0.2317493]
[1659306024677,7.591e-05,23461.0,23456.0,0.10681612]
[1659306024964,7.591e-05,23461.0,23457.0,0.30354]
[1659306025206,7.591e-05,23461.0,23457.0,0.20486712]
[1659306025426,7.591e-05,23461.0,23458.0,0.46019594]
[1659306025667,0.03467316,23460.0,23458.0,0.15665594]
[1659306025895,0.98815345,23462.0,23458.0,0.15665594]
[1659306026117,0.60879,23466.0,23460.0,0.0525244]
[1659306026335,7.592e-05,23462.0,23460.0,0.1015543]
[1659306026575,7.592e-05,23462.0,23460.0,0.2080803]
[1659306027024,7.592e-05,23462.0,23460.0,0.1590504]
[1659306027240,0.40725733,23465.0,23461.0,0.36118757]
[1659306027487,0.40225733,23465.0,23461.0,0.16417457]
[1659306027728,0.00023131,23467.0,23462.0,0.40725733]
[1659306027957,0.00023131,23467.0,23461.0,0.5714319]
[1659306028181,0.00023131,23467.0,23463.0,0.05775665]
[1659306028416,0.00023131,23467.0,23462.0,0.20625969]
[1659306028417,0.40746166,23466.0,23462.0,0.20625969]
[1659306028642,0.40746166,23466.0,23462.0,0.15125544]
[1659306028643,0.40725733,23465.0,23462.0,0.15125544]
[1659306029117,0.40725733,23465.0,23463.0,0.15319442]
[1659306029551,0.45725733,23465.0,23463.0,0.15319442]